Cogmind - Beta 12 @@@ ROGUE MODE // 2023.04.06 @ 22:25:42 Player: kasaphescent Result: Destroyed by H-61 Shepherd with Heavy Assault Cannon Performance ------------- Evolutions (2) 1000 Regions Visited (5) 1000 Robots Destroyed (27) 135 Value Destroyed (839) 839 Prototype IDs (25) 500 Alien Tech Used (0) 0 Bonus (378) 378 TOTAL SCORE: 3852 Bonus ------- Follower Combat Kills 78 Aligned with FarCom 300 Cogmind --------- Core Integrity 0/550 Matter 106/300 Energy 39/100 System Corruption 0% Temperature Cool (0) Movement Core (550) Ox10 Location -8/Materials Parts ------- > --- POWER (1) -------- (None) > --- PROPULSION (3) --- Wheel > --- UTILITY (5) ------ Large Storage Unit 0b10 Alert Chip Thief Drone Bay (0/3) > --- WEAPON (2) ------- Light EM Pulse Cannon Improved Assault Rifle > --- INVENTORY (15) --- Wheel Wheel High-capacity Battery (250) Light EM Pulse Cannon Light EM Pulse Cannon Light EM Pulse Cannon Peak State ------------ > --- POWER ------------ (None) > --- PROPULSION ------- Light Treads Light Treads Light Treads > --- UTILITY ---------- Large Storage Unit 0b10 Alert Chip Advanced Targeting Computer Weapon Shielding Thief Drone Bay > --- WEAPON ----------- Improved Assault Rifle Improved Light Cannon > --- INVENTORY -------- Light Treads Wheel Wheel Wheel Wheel High-capacity Battery Light EM Pulse Cannon Light EM Pulse Cannon Light EM Pulse Cannon Light EM Pulse Cannon Improved Assault Rifle Improved Light Cannon Improved Light Cannon Rocket Launcher [Rating: 28] Favorites ----------- Power Light Ion Engine Engine Light Ion Engine Propulsion Light Treads Treads Light Treads Leg Aluminum Leg Wheel Wheel Utility Large Storage Unit Device Terrain Scanner Storage Large Storage Unit Processor Targeting Computer Protection Light Armor Plating Weapon Improved Light Cannon Energy Gun Medium Laser Energy Cannon Light EM Pulse Cannon Ballistic Gun Improved Assault Rifle Ballistic Cannon Improved Light Cannon Launcher Rocket Launcher Build | -11 -10 -10 -10 -9 -8 ------- Run | Jun Mat Min Exi Min Mat Slots Evolved 4 | . . . . . 4 Power . | . . . . . . Propulsion 1 | . . . . . 1 Utility 3 | . . . . . 3 Weapon . | . . . . . . Parts Attached 33 | 6 8 1 1 1 16 Power 1 | 1 . . . . . Engine 1 | 1 . . . . . Core . | . . . . . . Reactor . | . . . . . . Propulsion 12 | 2 3 . . 1 6 Treads 8 | . 3 . . 1 4 Leg 2 | 2 . . . . . Wheel 2 | . . . . . 2 Hover . | . . . . . . Flight . | . . . . . . Utility 10 | 1 3 . 1 . 5 Device 3 | . 1 . . . 2 Storage 2 | 1 1 . . . . Processor 3 | . 1 . 1 . 1 Hackware . | . . . . . . Protection 2 | . . . . . 2 Artifact . | . . . . . . Weapon 10 | 2 2 1 . . 5 Energy Gun 2 | 2 . . . . . Energy Cannon 1 | . . . . . 1 Ballistic Gun 2 | . . 1 . . 1 Ballistic Cannon 4 | . 2 . . . 2 Launcher 1 | . . . . . 1 Special Weapon . | . . . . . . Impact Weapon . | . . . . . . Slashing Weapon . | . . . . . . Piercing Weapon . | . . . . . . Special Melee Weapon . | . . . . . . Unidentified Prototypes 2 | . . 1 . . 1 Parts Lost 15 | . . 2 . . 13 Power 1 | . . 1 . . . Propulsion 5 | . . . . . 5 Utility 3 | . . . . . 3 Weapon 6 | . . 1 . . 5 Highest Loss Streak 9 | . . 2 . . 9 To Critical Strikes . | . . . . . . Average Slot Usage (%) 89 | . 99 92 84 85 79 Engine 5 | . 14 6 . . . Treads 24 | . 22 28 28 28 22 Leg 2 | . 5 . . . . Storage 13 | . 14 14 14 14 9 Processor 13 | . 13 14 13 14 15 Protection 2 | . . . . . 12 Energy Gun 1 | . 4 . . . . Ballistic Gun 7 | . . 7 14 14 7 Ballistic Cannon 17 | . 23 20 14 14 9 Naked Turns . | . . . . . . Heaviest Build 31 | 12 31 31 27 27 31 Greatest Support 60 | 20 40 40 40 40 60 Greatest Overweight (x) 2 | 2 1 . . . . Average Overweight (x) . | . . . . . . Largest Inventory Capacity 15 | 8 15 15 15 15 15 Average Capacity 13 | 6 11 15 15 15 15 Most Carried 15 | 6 15 15 15 15 15 Average Carried 12 | 3 9 14 14 14 13 Final Capacity 15 | 8 15 15 15 15 15 Final Carried 15 | 6 15 14 15 15 6 Class Distribution -------------------- 100% | Mutant Dominant Class ---------------- Mutant | -10/Materials Mutant | -10/Mines Mutant | -10/Exiles Mutant | -9/Mines Mutant | -8/Materials Resources | -11 -10 -10 -10 -9 -8 ----------- Run | Jun Mat Min Exi Min Mat Matter Collected 778 | 232 261 89 . 18 178 Remotely . | . . . . . . Salvage Created 591 | . 234 . . . 357 Parts 36 | . 19 . . . 17 Haulers Intercepted 2 | . 2 . . . . Recyclers Shooed . | . . . . . . Parts Field Recycled . | . . . . . . Retrieved Matter . | . . . . . . Parts Self-Destructed . | . . . . . . Prevented . | . . . . . . Kills | -11 -10 -10 -10 -9 -8 ------- Run | Jun Mat Min Exi Min Mat Combat Hostiles Destroyed 22 | . 10 1 . . 11 Guns 2 | . . 1 . . 1 Cannons 19 | . 10 . . . 9 AOE 1 | . . . . . 1 Classes Destroyed 7 | . 4 . . . 3 Builder 1 | . 1 . . . . Hauler 2 | . 2 . . . . Operator 2 | . . . . . 2 Swarmer 7 | . 6 1 . . . Grunt 12 | . 4 . . . 8 Sentry 1 | . . . . . 1 Specialist 2 | . . . . . 2 Best Kill Streak 6 | . 3 1 . . 6 Combat Bots Only 6 | . 3 1 . . 6 Max Kills in Single Turn 1 | . 1 1 . . 1 Gunslinging . | . . . . . . Exploded 1 | . . . . . 1 Melee . | . . . . . . Uniques/NPCs Destroyed . | . . . . . . Combat | -11 -10 -10 -10 -9 -8 -------- Run | Jun Mat Min Exi Min Mat Damage Taken 2680 | . 299 398 . . 1983 Core 675 | . 53 72 . . 550 Absorbed by Shields . | . . . . . . Redirected to Shielding 50 | . . . . . 50 Core Remaining (%) 75 | 100 . . . 50 . Volleys Fired 65 | . 31 4 . . 30 Largest 2 | . 2 2 . . 2 Hottest 79 | . 78 78 . . 79 Shots Fired 118 | . 53 8 . 1 56 Gun 20 | . . 2 . . 18 Cannon 94 | . 53 6 . 1 34 Launcher 4 | . . . . . 4 Special . | . . . . . . Kinetic 113 | . 53 8 . 1 51 Thermal . | . . . . . . Explosive 4 | . . . . . 4 Electromagnetic 1 | . . . . . 1 Robot Hit Streak 11 | . 9 1 . . 11 Robot Miss Streak 3 | . 3 3 . . 2 Penetration Max . | . . . . . . Secondary Targets . | . . . . . . Shots Hit Robots 72 | . 27 2 . . 43 Core Hits 49 | . 14 2 . . 33 Critical Kills . | . . . . . . Critical Parts Destroyed . | . . . . . . Critical Strikes 2 | . 2 . . . . Blast 2 | . 2 . . . . Melee Attacks . | . . . . . . Impact . | . . . . . . Slashing . | . . . . . . Piercing . | . . . . . . Sneak Attacks . | . . . . . . Combat Hostiles . | . . . . . . Follow-up Attacks . | . . . . . . Damage Inflicted 2267 | . 579 35 . . 1653 Guns 262 | . . 14 . . 248 Cannons 1161 | . 579 21 . . 561 Explosions 844 | . . . . . 844 Melee . | . . . . . . Ramming . | . . . . . . Kinetic 1404 | . 579 35 . . 790 Thermal . | . . . . . . Explosive 844 | . . . . . 844 Electromagnetic 19 | . . . . . 19 Impact . | . . . . . . Slashing . | . . . . . . Piercing . | . . . . . . Highest Corruption 2 | . 2 2 2 2 . Average Corruption 2 | . 2 2 2 2 . Corruption Purged . | . . . . . . Corruption Blocked . | . . . . . . Effects 21 | . 9 3 5 4 . Message Errors 9 | . 5 2 2 . . Matter Fused 3 | . . . 1 2 . Heat Flow Errors 2 | . 1 . 1 . . Data Loss (minor) 2 | . . 1 1 . . Data Loss (major) 3 | . 2 . . 1 . Misfires 1 | . . . . 1 . Weapon Failures 1 | . 1 . . . . Overload Shots . | . . . . . . Overflow Damage 39 | . 4 . . . 35 Projectiles 25 | . 4 . . . 21 Explosions 14 | . . . . . 14 Melee . | . . . . . . Knockbacks 7 | . 2 1 . . 4 Impact . | . . . . . . Kinetic 7 | . 2 1 . . 4 Secondary . | . . . . . . Self-Inflicted Damage . | . . . . . . Shots . | . . . . . . Rammed . | . . . . . . Targets Rammed . | . . . . . . Kicked . | . . . . . . Crushed . | . . . . . . Highest Temperature 183 | . 183 31 106 . 120 Average Temperature 35 | . 42 18 58 . 21 Received Heat Transfer 915 | . 69 . . . 846 Siege Activations . | . . . . . . Robots Corrupted . | . . . . . . Combat Hostiles . | . . . . . . Parts Fried . | . . . . . . Impact Corruptions . | . . . . . . Robots Melted . | . . . . . . Combat Hostiles . | . . . . . . Parts Melted . | . . . . . . Heat Transferred . | . . . . . . Parts Sabotaged . | . . . . . . Parts Stolen . | . . . . . . Parts Stripped . | . . . . . . Power Chain Reactions . | . . . . . . Missiles Intercepted . | . . . . . . Alert | -11 -10 -10 -10 -9 -8 ------- Run | Jun Mat Min Exi Min Mat Peak Influence 139 | . 139 62 . . 135 Initial 33 | . . 33 . . . Average 32 | . 50 47 . . 24 Maximum Alert Level . | . . . . . . Low Security (%) 100 | 100 100 100 . 100 100 Level 1 . | . . . . . . Level 2 . | . . . . . . Level 3 . | . . . . . . Level 4 . | . . . . . . Level 5 . | . . . . . . High Security . | . . . . . . Max Security . | . . . . . . Squads Dispatched 5 | . 1 . . . 4 Investigation . | . . . . . . Extermination . | . . . . . . Reinforcement 5 | . 1 . . . 4 Assault . | . . . . . . Garrison . | . . . . . . Intercept . | . . . . . . Searches Triggered . | . . . . . . Construction Impeded . | . . . . . . Haulers Reinforced . | . . . . . . Active Scanning Responses . | . . . . . . Cargo Convoy Interrupts . | . . . . . . Stealth | -11 -10 -10 -10 -9 -8 --------- Run | Jun Mat Min Exi Min Mat Distress Signals 2 | . 1 . . . 1 Communications Jammed . | . . . . . . Distress Signals . | . . . . . . Times Spotted 48 | . 19 12 . . 17 Peak Tracking Total 13 | . 5 13 . . 10 Tactical Retreats 1 | . . . . . 1 Traps | -11 -10 -10 -10 -9 -8 ------- Run | Jun Mat Min Exi Min Mat Traps Triggered 1 | . 1 . . . . Indirectly . | . . . . . . Trap Hack Attempts . | . . . . . . Triggered . | . . . . . . Disarmed . | . . . . . . Reprogrammed . | . . . . . . Reused . | . . . . . . Traps Extracted . | . . . . . . Installed . | . . . . . . Triggered . | . . . . . . Machines | -11 -10 -10 -10 -9 -8 ---------- Run | Jun Mat Min Exi Min Mat Machines Disabled 2 | . 1 . . . 1 Max in Single Turn 1 | . 1 . . . 1 Machines Repaired . | . . . . . . Machines Sabotaged . | . . . . . . Overloaded Fab Kills . | . . . . . . Hacking | -11 -10 -10 -10 -9 -8 --------- Run | Jun Mat Min Exi Min Mat Machines Accessed 7 | . 2 . 2 1 2 Terminals 4 | . 2 . . . 2 Fabricators . | . . . . . . Repair Stations . | . . . . . . Recycling Units . | . . . . . . Scanalyzers . | . . . . . . Garrison Access . | . . . . . . Total Hacks 14 | . 4 . 2 1 7 Successful 6 | . 1 . 2 1 2 Failed 8 | . 3 . . . 5 Catastrophic 1 | . 1 . . . . Database Lockouts . | . . . . . . Manual 5 | . . . 1 . 4 Terminals 11 | . 4 . . . 7 Fabricators . | . . . . . . Repair Stations . | . . . . . . Recycling Units . | . . . . . . Scanalyzers . | . . . . . . Garrison Access . | . . . . . . Terminal Hacks 4 | . 1 . 2 1 . Record 1 | . . . 1 . . Open Door 1 | . . . . 1 . Locate Traps 1 | . 1 . . . . EX-Prototype ID Bank 1 | . . . 1 . . Fabricator Hacks . | . . . . . . Repair Station Hacks . | . . . . . . Recycling Unit Hacks . | . . . . . . Scanalyzer . | . . . . . . Garrison Access Hacks . | . . . . . . Unauthorized Hacks 2 | . . . . . 2 Terminals 2 | . . . . . 2 Botnet 2 | . . . . . 2 Fabricators . | . . . . . . Repair Stations . | . . . . . . Recycling Units . | . . . . . . Scanalyzers . | . . . . . . Garrison Access . | . . . . . . Data Cores Recovered . | . . . . . . Used . | . . . . . . Hacking Detections 4 | . 2 . . . 2 Full Trace Events . | . . . . . . Feedback Events . | . . . . . . Feedback Blocked . | . . . . . . Robot Schematics Acquired . | . . . . . . Robots Built . | . . . . . . Authchips . | . . . . . . Time . | . . . . . . Total Robot Build Rating . | . . . . . . Part Schematics Acquired . | . . . . . . Parts Built . | . . . . . . Authchips . | . . . . . . Time . | . . . . . . Total Part Build Rating . | . . . . . . Parts Repaired . | . . . . . . Time . | . . . . . . Parts Recycled . | . . . . . . Recycled Matter . | . . . . . . Retrieved Matter . | . . . . . . Retrieved Components . | . . . . . . Parts Scanalyzed . | . . . . . . Part Schematics Acquired . | . . . . . . Parts Damaged . | . . . . . . Bothacking | -11 -10 -10 -10 -9 -8 ------------ Run | Jun Mat Min Exi Min Mat Used RIF Installer . | . . . . . . Robots Hacked . | . . . . . . Non-combat . | . . . . . . Combat . | . . . . . . Robot Hacks Applied . | . . . . . . Relay Couplers Released . | . . . . . . Fabnet Peak Effective % . | . . . . . . Robots Rewired . | . . . . . . Allies Hacked . | . . . . . . Hacks Repelled . | . . . . . . Allies | -11 -10 -10 -10 -9 -8 -------- Run | Jun Mat Min Exi Min Mat Total Allies 6 | . . 5 . 1 . Largest Group 3 | . . 3 3 1 2 Highest-Rated Group 62 | . . 62 62 13 44 Highest-Rated Ally 31 | . . 31 31 13 31 Total Orders . | . . . . . . Ally Attacks 36 | . . 21 . . 15 Total Damage 410 | . . 224 . . 186 Kills 2 | . . 2 . . . Allies Corrupted . | . . . . . . Allies Melted . | . . . . . . Intel | -11 -10 -10 -10 -9 -8 ------- Run | Jun Mat Min Exi Min Mat Robot Analysis Total . | . . . . . . Derelict Logs Recovered 1 | . . 1 . . . Drone Launches 3 | . . . . . 3 Drone Recoveries . | . . . . . . Exploration | -11 -10 -10 -10 -9 -8 ------------- Run | Jun Mat Min Exi Min Mat Turns Passed 2456 | 71 860 274 420 402 429 Spaces Moved 1320 | 49 481 147 261 248 134 Core 8 | 8 . . . . . Treads 1128 | . 350 147 261 248 122 Legs 172 | 41 131 . . . . Wheels 12 | . . . . . 12 Hover . | . . . . . . Flight . | . . . . . . Fastest Speed 50 | 50 120 160 160 160 80 Average Speed 153 | 115 149 160 160 160 152 Slowest Speed 190 | 150 190 160 160 160 160 Overloaded Moves . | . . . . . . Propulsion Burnouts . | . . . . . . Robots Hopped . | . . . . . . Cave-ins Triggered . | . . . . . . Exploration Rate (%) 47 | 5 82 46 65 72 14 Regions Visited 5 Branch Regions 3 Pre-discovered Areas 1 | . . . 1 . . Known Exits Taken . | . . . . . . Unknown Exits Taken 5 | 1 1 1 1 1 . Scrap Searched 1 | . . . . 1 . Spaces Dug 9 | . 1 . . . 8 Terrain Destroyed 17 | . 4 . . . 13 Melee . | . . . . . . Projectile 4 | . 4 . . . . AOE 13 | . . . . . 13 Terrain Rammed . | . . . . . . Walls Destroyed . | . . . . . . Machines Disabled . | . . . . . . Actions | -11 -10 -10 -10 -9 -8 --------- Run | Jun Mat Min Exi Min Mat Total 1634 | 60 574 178 264 256 302 Wait 177 | . 27 27 1 2 120 Move 1315 | 48 480 146 260 247 134 Hop . | . . . . . . Pick Up 24 | 6 14 . 1 3 . Fast Attach 16 | 6 6 . 1 . 3 Attach 13 | . . 1 . 1 11 Detach 4 | . 2 . 1 . 1 Swap 4 | . 2 . . . 2 Drop 16 | . 12 . . 3 1 Fire 65 | . 31 4 . . 30 Melee . | . . . . . . Ram . | . . . . . . Kick . | . . . . . . Crush . | . . . . . . Escape Stasis . | . . . . . . Rewire . | . . . . . . Trap . | . . . . . . Miscellaneous . | . . . . . . Route ------- -11/Junkyard -10/Materials (discovered 4 exits: [*Mat x2] / [*Min x2]) -10/Mines (discovered 2 exits: [*Mat] / *Exi) -10/Exiles -9/Mines -8/Materials History --------- Turn | Location | Event 16 | -11/Junkyard | Discovered new exit (range 15) 72 | -11/Junkyard | Entered Materials 309 | -10/Materials | Build established: Mutant 317 | -10/Materials | Discovered new exit (range 12) 336 | -10/Materials | Discovered new exit (range 3) 565 | -10/Materials | Discovered new exit (range 16) 796 | -10/Materials | Discovered new exit (range 13) 932 | -10/Materials | Entered Mines 936 | -10/Mines | Assisted by bots powering up and referring to "LRC-V3" 961 | -10/Mines | Learned Materials security intel 1031 | -10/Mines | Assembled infested the area 1082 | -10/Mines | Met 8R-AWN 1144 | -10/Mines | Discovered new exit (range 10) 1192 | -10/Mines | Discovered new exit (range 5) 1206 | -10/Mines | Entered Exiles 1206 | -10/Exiles | Accompanied by 3 allies 1236 | -10/Exiles | Led the pair of lost Derelicts to a safe place 1251 | -10/Exiles | Welcomed by 8R-AWN 1273 | -10/Exiles | Met EX-HEX 1327 | -10/Exiles | Met EX-BIN 1347 | -10/Exiles | Aligned with FarCom system 1348 | -10/Exiles | Given EX-Vault access code 1387 | -10/Exiles | Opened EX-Vault 1400 | -10/Exiles | Found 0b10 Alert Chip 1432 | -10/Exiles | Warned to stay clear of 0b10 Research branches 1478 | -10/Exiles | Met EX-DEC 1485 | -10/Exiles | Learned location of Zion (-7) 1605 | -10/Exiles | Discovered new exit (range 14) 1626 | -10/Exiles | Left Exiles lab with 0b10 Alert Chip 1626 | -10/Exiles | Entered Mines 1626 | -9/Mines | Accompanied by 1 ally 1655 | -9/Mines | Found the Drone Emporium 1662 | -9/Mines | Found Prototype Device 1914 | -9/Mines | Received a Rocket Launcher from a helpful Derelict 2013 | -9/Mines | Discovered new exit (range 8) 2024 | -9/Mines | Received a Mining Laser from a helpful Derelict 2028 | -9/Mines | Entered Materials 2028 | -8/Materials | Accompanied by 2 allies 2028 | -8/Materials | Evolved 4 slots: Propulsion x1, Utility x3 2355 | -8/Materials | Identified Thief Drone Bay 2412 | -8/Materials | Core integrity fell below 50% 2417 | -8/Materials | Lost 9 parts (3n3u3w) 2448 | -8/Materials | Core integrity fell below 20% 2457 | -8/Materials | Destroyed by H-61 Shepherd with Heavy Assault Cannon Last Messages --------------- 02428_ G-50 Soldier destroyed. 02430_ Lgt. Treads destroyed. 02430_ Penetrated by Slug. 02430_ Imp. Light Cannon destroyed. 02430_ Knocked back. 02437_ M-13 Machinist repairs Y-45 Defender. 02438_ G-47 Trooper knocked back. 02438_ Knocked back. 02441_ Y-45 Defender destroyed. 02444_ G-47 Trooper knocked back. 02451_ Imp. Light Cannon destroyed. 02451_ R-06 Scavenger collects Lgt. Nuclear Core. 02454_ Critical hit (Burn: +37). 02455_ Thief Drone released from Thief Drone Bay. 02455_ Thief Drone sneak attacks. 02455_ R-06 Scavenger collects Heat Sink. 02456_ Thief Drone released from Thief Drone Bay. 02456_ Thief Drone sneak attacks. 02457_ Thief Drone released from Thief Drone Bay. 02457_ Thief Drone sneak attacks. Map ----- +----------------------------------------------------+ | ????????????????##+##????????????????????????????? | | ????????????????# ##???????????????????????????? | | ???????????????? ????????????????????????????? | | ?#??????????????# #????????????????????????????? | | ?# ?????????????# #????????????????????????????? | | ?# ????????##### #???????????######???????????? | | ?# ???????+ #???????????#= #???????????? | | ## ###?????# #???????????# #???????????? | | # #"###### #???????????# = #???????????? | | %!%= % # #?????#######% ############# | | "= """%# ####### # / !! | | ??????# "T"%#* "" ###+## | | ??????# ! % %/= T w !! | | ??????# !% ! %% ###### | | ??????####" ####+## #????# | | ?????????### ! ###%###????# | | ??????????# """ #?# #??????# ##+## | | ???????????# " """ #?# #??????# """ #???? | | ????????????# """ #?# #??????# """ #???? | | ????????????#" ###%#??????# """ #???? | | ????????????# + %%#??????# #???? | | ????????????######"#########%+#####??# #???? | | ?????????????????###????# ggr%% #??#########???? | | ????????????????????????#nnH % #??????????????? | | ????????????????????????# n% #??????????????? | | ????????????????????????#@ "" #??????????????? | | ????????????????????????###########??????????????? | | | | | | | | | | | | | | | | | | | | | | | | | | | | | | | | | | | | | | | | | | | | | | | +----------------------------------------------------+ Best States ------------- Heat Dissipation 31 Energy Generation 10 Energy Capacity 125 Matter Stores 300 Matter Capacity 300 Sight Range 16 Terrain Scan Range 14 Terrain Scan Density 10 Armor Coverage 150 Weapon Shielding 33 Evasion (%) 55 Targeting Accuracy 8 Recoil Reduction 3 Item Schematics ----------------- None Robot Schematics ------------------ None Fabricated ------------ Nothing Alien Tech Used ----------------- None Achievements -------------- None Challenges ------------ None Game ------ Seed MachineVisualMatter Manual? 0 Play Time 00:15:56 Cumulative 331.4 hours Start 2023.04.06 @ 22:10:52 End 2023.04.06 @ 22:25:42 Sessions 1 Manual Loads 0 Difficulty Rogue Special Mode None Game No. 229 Rogue 229 Adventurer 0 Explorer 0 Win Type - Total 22 Types 19/0/2/1/0/0/0/0/0 Lore% 70 Gallery% 84 Achievement% 67 Wizard Run 0 Options --------- ASCII 0 Keyboard 1 Movement Numpad Keybinds 0 Fullscreen 2 Font 18/SmallcapsGlow Map View 76x50 Tactical HUD 1 Map Filters NONE Filters NONE Steam 1 RUN: ecb4e0d4-9443-422d-92db-82631a4053c6